Workbook

Sheet Cronograma
C2: NOTA: Elegir las caracteristicas del prestamo con las celdas Naranjas e ingresar datos en las celdas de Amarillo y presione el botón Calcular. | Z2: =FACTORES!O29 -> 0 | AA2: =IF(Z2>0,"COMBO","") -> 
F6: Monto Solicitado | G6: 34000 | H6: Soles | K6: Tipo de Cronograma | O6: Tipo Producto | P6: Compra de Deuda
D8: Tasa Efectiva Mensual Fija | G8: 4.67 | H8: % | K8: Mensual | O8: Gracia Absoluta | S8: Fecha Fija
F10: Plazo (cuotas) | G10: 3 | K10: Ptmos en general | M10: Nro cuotas | O10: 2
F12: Fecha Desembolso | G12: 2024-07-25 | K12: Cargos
G13: 1
F14: Dia de Pago | G14: 20 | L14: % ITF | M14: 5e-05 | O14: =TRUNC(((G6/(1-$M$14))-G6),1)+(IF(MOD(((G6/(1-$M$14))-G6)*100, 10)>=5, 5,0)/100) -> 1.7
V15: =IF(AND(FACTORES!O28=TRUE,AA2="COMBO"),2.9*G10,0) -> 0
F16: Monto Prestado | G16: =G6+O14+M17+Q18 -> 34165.7 | L16: Seg. Desgravamen | M16: Si, Tradicional | V16: =IF(FACTORES!M24=TRUE,FACTORES!L24,0) -> 0 | CF16: =IF(AND(CF20=0,CF17>120),1,0) -> 0
M17: =IF(CF20=0,IF($M$16="Si, Tradicional",$CE$35,IF(AND($M$16="Sí, retorno",G10>=25),$CF$35,0)),IF($M$16="Si, Tradicional",$CE$36,IF(AND(G10>=25,$M$16="Sí, retorno"),$CF$36))) -> 164 | Q17: Microseguros | V17: =IF(FACTORES!M16=TRUE,FACTORES!L16,0) -> 0 | CF17: =G10 -> 3 | CI17: =VLOOKUP($G$10*(CJ23-1),FACTORES!$G:$H,2,1) -> 0.0048
F18: TCEA | G18: =IF(G6="",0,(POWER((1+$AT$26),360)-1)*100) -> 75.78658442 | H18: % | K18: Seguro Multiriesgo | Q18: =CG32 -> 0 | V18: =IF(FACTORES!M20=TRUE,FACTORES!L20,0) -> 0 | CF18: FALSE
F20: TEA | G20: =IF(D8="Tasa Efectiva Mensual Fija",(POWER((1+G8/100),(360/30))-1)*100,G8) -> 72.92854604 | H20: % | V20: =IF(FACTORES!M33=TRUE,FACTORES!L33,0) -> 0 | AA20: P1 | CF20: =IF(CF18=TRUE,1,0) -> 0
T21: Adic | V21: =IF(AND(FACTORES!M29=TRUE,FACTORES!O28=FALSE),FACTORES!L29,0) -> 0 | AA21: P2
B23: Los datos emitidos por el simulador son referenciales, la aprobación del crédito está sujeto a evaluación crediticia. | AJ23: =AJ24 -> 40884.4 | AK23: CUOTA | CA23: MONEDA | CB23: =VLOOKUP($H$6,CA24:CB28,2,0) -> 1 | CC23: TASA | CD23: =VLOOKUP($D$8,CC24:CD28,2,0) -> 1 | CE23: DESGRAVAMEN | CF23: =VLOOKUP($M$16,CE24:CF28,2,0) -> 1 | CG23: MICROSEGUROS | CH23: =VLOOKUP($K$8,CG24:CH28,2,0) -> 2 | CI23: CRONOGRAMA | CJ23: =VLOOKUP($K$8,CI24:CJ28,2,0) -> 2 | CK23: PERIODO GRACIA | CL23: =VLOOKUP($O$8,CK24:CL28,2,0) -> 3 | CM23: FECHAS | CN23: =VLOOKUP($S$8,CM24:CN28,2,0) -> 1
B24: Los seguros deberán ser cancelados por el cliente al inicio del crédito o si lo requiere como parte del financiamiento. El cliente tiene el derecho a elegir entre: a) La contratación del seguro ofrecido por la empresa. | AJ24: =TRUNC(ROUND($AJ$25/AI29,2),1) -> 40884.4 | AK24: CUOTA PREVIA | CA24: Soles | CB24: 1 | CC24: Tasa Efectiva Mensual Fija | CD24: 1 | CE24: Si, Tradicional | CF24: 1 | CG24: Quincenal | CH24: 1 | CI24: Quincenal | CJ24: 1 | CK24: Sin Gracia | CL24: 1 | CM24: Fecha Fija | CN24: 1
B25: b) Un seguro contratado directamente por el cliente o a través de la designación de un corredor de seguros, siempre que cumpla con las condiciones previamente informadas en el certificado o póliza de seguros. | AI25: =AJ25/AI29 -> 40884.41031 | AJ25: =IF($CL$23=3,$G$16*POWER(1+$CC$32,$CK$33-$G$12),$G$16) -> 34165.7 | AK25: =AJ25/SUM(AI31:AI42) -> 12048.56405 | CA25: Dolares | CB25: 2 | CC25: Tasa Efectiva Anual Fija | CD25: 2 | CE25: No | CF25: 2 | CG25: Mensual | CH25: 2 | CI25: Mensual | CJ25: =CJ24+1 -> 2 | CK25: Gracia Relativa | CL25: 2 | CM25: Fecha Variable | CN25: 2
B26: Fecha de actualización: diciembre 2025 | AT26: 0.001568174092 | CA26: Euros | CB26: 3 | CE26: Sí, retorno | CF26: 1 | CG26: Bimestral | CH26: 3 | CI26: Bimestral | CJ26: =CJ25+1 -> 3 | CK26: Gracia Absoluta | CL26: 3
H27: SIMULACION DE CRONOGRAMA DE PAGOS | AQ27: FECHAS | AR27: 1RA | AS27: 2DA | AT27: =G6-AT29 -> 17000 | AW27: Quincenal | AY27: Mensual | BA27: Bimestral | BC27: Trimestral | CG27: Trimestral | CH27: 4 | CI27: Trimestral | CJ27: =CJ26+1 -> 4
AG28: FV Y PGA | AI28: FACTOR ACT | AJ28: FACTOR ACT GR | AK28: FACTOR ACT GA | AL28: MES | AM28: AÑO | AN28: DIAS | AO28: DIAS ACUM | AP28: FIN DE MES | AQ28: INICIALES | AR28: VALIDACION | AS28: VALIDACION | AT28: VA | AV28: =CJ23 -> 2 | AW28: DIA | AX28: AÑO | AY28: MES | AZ28: AÑO | BA28: MES | BB28: AÑO | BC28: MES | BD28: AÑO | BE28: =INT(G10/2)+1 -> 2
F29: N° | G29: FECHA PAGO | H29: SALDO | K29: CAPITAL | L29: INTERESES | O29: Seg.multiriesgo | P29: CUOTA SIN ITF | Q29: ITF | R29: CUOTA | AI29: =IF($CL$23=1,SUM(AI30:AI329),IF($CL$23=2,SUM(AJ30:AJ329),SUM(AK30:AK329))) -> 0.8356657155 | AL29: =IF($AV$28=1,AW29,IF($AV$28=2,AY29,IF($AV$28=3,BA29,BC29))) -> 8 | AM29: =IF($AV$28=1,AX29,IF($AV$28=2,AZ29,IF($AV$28=3,BB29,BD29))) -> 2024 | AP29: =IF($AV$28=1,"",DATE(AM31,AL31,1)-1) -> 2024-08-31 | AT29: =SUM(AT30:AT329) -> 17000 | AW29: =IF(DAY(G12)>G14,MONTH(G12)+1,MONTH(G12)) -> 8 | AX29: =IF(AY29>12,YEAR(G12)+1,YEAR(G12)) -> 2024 | AY29: =IF(AND(DAY(G12)>G14,CN23=1),MONTH(G12)+1,MONTH(G12)) -> 8 | AZ29: =IF(AY29>12,YEAR(G12)+1,YEAR(G12)) -> 2024 | BA29: =IF(DAY(G12)>G14,MONTH(G12)+1,MONTH(G12)) -> 8 | BB29: =IF(AY29>12,YEAR(G12)+1,YEAR(G12)) -> 2024 | BC29: =IF(DAY(G12)>G14,MONTH(G12),MONTH(G12)) -> 7 | BD29: =IF(BC29>12,YEAR(G12)+1,YEAR(G12)) -> 2024 | CS29: Gracia Relativa | CT29: Gracia Absoluta | CV29: FECHA_FINAL | CW29: Dias | CX29: Dias Acum
H30: =G16 -> 34165.7 | CP30: =IF(AND($CL$23=3,$O$10>=$AH31),$G$12,IF(AND($CL$23=3,$CN$23=2),AG31,IF($AV$28=1,$AW$31,IF($CN$23=1,DATE(AM31,AL31,$G$14),IF($AV$28=2,$G$12+30,IF($AV$28=3,$G$12+60,$G$12+90)))))) -> 2024-07-25
F31: 1 | G31: 2024-07-25 | H31: =H30*POWER(1+$CC$32,G31-$G$12) -> 34165.7 | K31: 0 | L31: 0 | P31: =K31+L31+O31 -> 0 | Q31: =TRUNC(((($P31)/(1-$M$14))-($P31)),1)+(IF(MOD(((($P31)/(1-$M$14))-($P31))*100, 10)>=5, 5, 0)/100) -> 0 | R31: =Q31+P31 -> 0 | AG31: =$G$12+30 -> 2024-08-24 | AH31: 1 | AI31: =1/POWER(1+$CC$32,IF($CL$23=3,$CX31,$AO31)) -> 1 | AJ31: =IF($AH31<=$CK$32,0,1/POWER(1+$CC$32,$CV31-$G$12-VLOOKUP($CK$32,$AH$31:$AO$500,8,0))) -> 0 | AK31: =IF(AND(G$10=3,O$10=2,AH31=G$10),$AI31,IF(OR($AJ31=0,$AJ30=0),0,$AI31)) -> 0 | AL31: =IF($AV$28=1,AW31,IF($AV$28=2,AY31,IF($AV$28=3,BA31,BC31))) -> 9 | AM31: 2024 | AN31: =IF($CN$23=2,CW31,CV31-G12) -> 0 | AO31: =IF($CN$23=2,CX31,CV31-$G$12) -> 0 | AP31: =IF($AV$28=1,"",DATE(AM32,AL32,1)-1) -> 2024-09-30 | AQ31: =IF(AND($CL$23=3,$O$10>=$AH31),$G$12,IF(AND($CL$23=3,$CN$23=2),AG31,IF($AV$28=1,$AW$31,IF($CN$23=1,DATE(AM31,AL31,$G$14),IF($AV$28=2,$G$12+30,IF($AV$28=3,$G$12+60,$G$12+90)))))) -> 2024-07-25 | AR31: =$AQ31+IF(AND(DAY($AQ31)=27,MONTH($AQ31)=7),3,IF(AND(WEEKDAY($AQ31)=5,ISERROR(VLOOKUP($AQ31+1,FACTORES!$A:$A,1,0))=FALSE),4,IF(OR(WEEKDAY($AQ31)=1,ISERROR(VLOOKUP($AQ31,FACTORES!$A:$A,1,0))=FALSE),1,IF(WEEKDAY($AQ31)=7,2,0)))) -> 2024-07-25 | AS31: 2024-07-25 | AT31: =P31/POWER(1+$AT$26,AO31) -> 0 | AW31: =G12+15 -> 2024-08-09 | AY31: =IF(AY29<12,AY29+1,AY29+1-12) -> 9 | AZ31: =IF(AY29=12,AZ29+1,AZ29) -> 2024 | BA31: =IF(BA29<=10,BA29+2,IF(BA29=11,1,IF(BA29=12,2,IF(BA29=13,3,4)))) -> 10 | BB31: =IF(BA29>=11,BB29+1,BB29) -> 2024 | BC31: =IF(BC29<=9,BC29+3,IF(BC29=10,1,IF(BC29=11,2,IF(BC29=12,3,4)))) -> 10 | BD31: =IF(BC29>=10,BD29+1,BD29) -> 2024 | BE31: =DATE(AZ31,AY31,$G$14) -> 2024-09-20 | BF31: =$BE31+IF(OR(WEEKDAY($BE31)=1,ISERROR(VLOOKUP($BE31,FACTORES!$A:$A,1,0))=FALSE),1,IF(WEEKDAY($BE31)=7,2,0)) -> 2024-09-20 | BG31: =IF(AND(DAY($BE31)=27,WEEKDAY($BE31)=1),$BE31-2,IF(AND(DAY($BE31)=27,WEEKDAY($BE31)=7),$BE31-1,IF(AND(DAY($BE31)=26,WEEKDAY($BE31)=1),$BE31-2,IF(AND(DAY($BE31)=26,WEEKDAY($BE31)=7),$BE31-1,IF(DAY($BF31)=15,$BF31+2,IF(DAY($BF31)=16,$BF31+1,$BF31)))))) -> 2024-09-20 | CC31: =IF(CD23=1,$G$8*12,(POWER(1+$G$8/100,1/12)-1)*1200) -> 56.04 | CE31: =IF($CF$20=1,FACTORES!$C$4,IF(K8="Quincenal",VLOOKUP($G$10,FACTORES!$G:$H,2,1),VLOOKUP($G$10*(CJ23-1),FACTORES!$G:$H,2,1))) -> 0.0048 | CF31: =IF($CF$20=1,FACTORES!$C$4,IF(K8="Quincenal",VLOOKUP($G$10,FACTORES!$G:$H,2,1),VLOOKUP($G$10*(CJ23-1),FACTORES!$AC:$AE,3))) ->  | CG31: =SUM(V15:V21) -> 0 | CK31: Valida Gracia | CO31: 1 | CP31: =$CP$30+IF(DAY($CP$30+1)=16,2,IF(DAY($CP$30)=15,1,IF(DAY($CP$30)=28,4,IF(WEEKDAY($CP$30)=7,2,IF(WEEKDAY($CP$30)=1,1,0))))) -> 2024-07-25 | CQ31: =$CP31+IF(AND(WEEKDAY($CP31)=6,ISERROR(VLOOKUP($CP31,FACTORES!$A:$A,1,0))=FALSE),2,0) -> 2024-07-25 | CR31: =CQ31+IF(WEEKDAY(CQ31)=7,2,IF(WEEKDAY(CQ31)=1,1,IF(AND(WEEKDAY(CQ31)=6,ISERROR(VLOOKUP(CQ31,FACTORES!$A:$A,1,0))=FALSE),3,0))) -> 2024-07-25 | CS31: =$CR31+IF(AND(WEEKDAY($CR31)=6, ISERROR(VLOOKUP($CR31,FACTORES!$A:$A,1,0))=FALSE),2,0) -> 2024-07-25 | CT31: =IF(AND($CL$23=3,$O$10>=$CO31),$G$12,$CS31) -> 2024-07-25 | CV31: =IF($CN$23=1,IF(OR($CL$23=3,$CL$23=2),$CT31,AS31),IF(AND($CN$23=2,$CL$23=3),CT31,CS31)) -> 2024-07-25 | CW31: =CV31-$G$12 -> 0 | CX31: =IF($CL$23=3,0,CW31+CW30) -> 0
F32: =F31+1 -> 2 | G32: 2024-07-25 | H32: =H31*POWER(1+$CC$32,G32-G31) -> 34165.7 | K32: 0 | L32: 0 | P32: =K32+L32+O32 -> 0 | Q32: =TRUNC(((($P32)/(1-$M$14))-($P32)),1)+(IF(MOD(((($P32)/(1-$M$14))-($P32))*100, 10)>=5, 5, 0)/100) -> 0 | R32: =Q32+P32 -> 0 | AG32: =AG31+30 -> 2024-09-23 | AH32: =AH31+1 -> 2 | AI32: =1/POWER(1+$CC$32,IF($CL$23=3,$CX32,$AO32)) -> 1 | AJ32: =IF($AH32<=$CK$32,0,1/POWER(1+$CC$32,$CV32-$G$12-VLOOKUP($CK$32,$AH$31:$AO$500,8,0))) -> 0 | AK32: =IF(AND(G$10=3,O$10=2,AH32=G$10),$AI32,IF(OR($AJ32=0,$AJ31=0),0,$AI32)) -> 0 | AL32: 10 | AM32: 2024 | AN32: =CV32-CV31 -> 0 | AO32: =IF($CN$23=2,CX32,CV32-$G$12) -> 0 | AP32: =IF($AV$28=1,"",DATE(AM33,AL33,1)-1) -> 2024-10-31 | AQ32: =IF(AND($CL$23=3,$O$10>=$AH32),$G$12,IF(AND($CL$23=3,$CN$23=2),AG32,IF($AV$28=1,$AW32,IF($CN$23=1,DATE(AM32,AL32,$G$14),IF($AV$28=2,AS31+30,IF($AV$28=3,AS31+60,AS31+90)))))) -> 2024-07-25 | AR32: =$AQ32+IF(AND(DAY($AQ32)=27,MONTH($AQ32)=7),3,IF(AND(WEEKDAY($AQ32)=5,ISERROR(VLOOKUP($AQ32+1,FACTORES!$A:$A,1,0))=FALSE),4,IF(OR(WEEKDAY($AQ32)=1,ISERROR(VLOOKUP($AQ32,FACTORES!$A:$A,1,0))=FALSE),1,IF(WEEKDAY($AQ32)=7,2,0)))) -> 2024-07-25 | AS32: 2024-07-25 | AT32: =P32/POWER(1+$AT$26,AO32) -> 0 | AW32: 2024-09-20 | AY32: =IF(AY31<12,AY31+1,AY31+1-12) -> 10 | AZ32: =IF(AY31=12,AZ31+1,AZ31) -> 2024 | BA32: =IF(BA31<=10,BA31+2,IF(BA31=11,1,IF(BA31=12,2,IF(BA31=13,3,4)))) -> 12 | BB32: =IF(BA31>=11,BB31+1,BB31) -> 2024 | BC32: =IF(BC31<=9,BC31+3,IF(BC31=10,1,IF(BC31=11,2,IF(BC31=12,3,4)))) -> 1 | BD32: =IF(BC31>=10,BD31+1,BD31) -> 2025 | BE32: =DATE(AZ32,AY32,$G$14) -> 2024-10-20 | BF32: =$BE32+IF(OR(WEEKDAY($BE32)=1,ISERROR(VLOOKUP($BE32,FACTORES!$A:$A,1,0))=FALSE),1,IF(WEEKDAY($BE32)=7,2,0)) -> 2024-10-21 | BG32: 2024-10-21 | CC32: =POWER(1+CC31/1200,1/30)-1 -> 0.001522569864 | CE32: =IF(CF23=1,CE31,0) -> 0.0048 | CF32: =IF(CF23=1,CF31,0) ->  | CG32: =CG31 -> 0 | CK32: =O10 -> 2 | CO32: =CO31+1 -> 2 | CQ32: =CS31+30 -> 2024-08-24 | CR32: =$CQ32+IF(WEEKDAY($CQ32)=7,2,IF(WEEKDAY($CQ32)=1,1,0)) -> 2024-08-26 | CS32: =$CR32+IF(AND(WEEKDAY($CR32)=6, ISERROR(VLOOKUP($CR32,FACTORES!$A:$A,1,0))=FALSE),3,0) -> 2024-08-26 | CT32: 2024-07-25 | CV32: =IF($CN$23=1,IF(AND($CL$23=3,CT32=CT31),$CT32,AS32),IF(AND($CN$23=2,$CL$23=3),CT32,CS32)) -> 2024-07-25 | CW32: =(CV32-CV31) -> 0 | CX32: =IF(OR($CL$23=2,$CL$23=1),CW32+CX31,IF(CX30=0,CW32,CW32+CX31)) -> 0
F33: =F32+1 -> 3 | G33: 2024-11-20 | H33: =H32-K33 -> 17074.11 | K33: 17091.59 | L33: 3361.07 | P33: =K33+L33+O33 -> 20452.66 | Q33: =TRUNC(((($P33)/(1-$M$14))-($P33)),1)+(IF(MOD(((($P33)/(1-$M$14))-($P33))*100, 10)>=5, 5, 0)/100) -> 1 | R33: =Q33+P33 -> 20453.66 | AG33: =AG32+30 -> 2024-10-23 | AH33: =AH32+1 -> 3 | AI33: =1/POWER(1+$CC$32,IF($CL$23=3,$CX33,$AO33)) -> 0.8356657155 | AJ33: =IF($AH33<=$CK$32,0,1/POWER(1+$CC$32,$CV33-$G$12-VLOOKUP($CK$32,$AH$31:$AO$500,8,0))) -> 0.8356657155 | AK33: =IF(AND(G$10=3,O$10=2,AH33=G$10),$AI33,IF(OR($AJ33=0,$AJ32=0),0,$AI33)) -> 0.8356657155 | AL33: 11 | AM33: 2024 | AN33: =CV33-CV32 -> 118 | AO33: =IF($CN$23=2,CX33,CV33-$G$12) -> 118 | AQ33: =IF(AND($CL$23=3,$O$10>=$AH33),$G$12,IF(AND($CL$23=3,$CN$23=2),AG33,IF($AV$28=1,$AW33,IF($CN$23=1,DATE(AM33,AL33,$G$14),IF($AV$28=2,AS32+30,IF($AV$28=3,AS32+60,AS32+90)))))) -> 2024-11-20 | AR33: =$AQ33+IF(AND(DAY($AQ33)=27,MONTH($AQ33)=7),3,IF(AND(WEEKDAY($AQ33)=5,ISERROR(VLOOKUP($AQ33+1,FACTORES!$A:$A,1,0))=FALSE),4,IF(OR(WEEKDAY($AQ33)=1,ISERROR(VLOOKUP($AQ33,FACTORES!$A:$A,1,0))=FALSE),1,IF(WEEKDAY($AQ33)=7,2,0)))) -> 2024-11-20 | AS33: 2024-11-20 | AT33: =P33/POWER(1+$AT$26,AO33) -> 17000 | AW33: =AW32+15 -> 2024-10-05 | AY33: =IF(AY32<12,AY32+1,AY32+1-12) -> 11 | AZ33: =IF(AY32=12,AZ32+1,AZ32) -> 2024 | BA33: =IF(BA32<=10,BA32+2,IF(BA32=11,1,IF(BA32=12,2,IF(BA32=13,3,4)))) -> 2 | BB33: =IF(BA32>=11,BB32+1,BB32) -> 2025 | BC33: =IF(BC32<=9,BC32+3,IF(BC32=10,1,IF(BC32=11,2,IF(BC32=12,3,4)))) -> 4 | BD33: =IF(BC32>=10,BD32+1,BD32) -> 2025 | BE33: =DATE(AZ33,AY33,$G$14) -> 2024-11-20 | BF33: =$BE33+IF(OR(WEEKDAY($BE33)=1,ISERROR(VLOOKUP($BE33,FACTORES!$A:$A,1,0))=FALSE),1,IF(WEEKDAY($BE33)=7,2,0)) -> 2024-11-20 | BG33: 2024-11-20 | CK33: =IF($CL$23=3,$G$12,VLOOKUP($CK$32,$AH$31:$CV$500,67,0)) -> 2024-07-25 | CO33: =CO32+1 -> 3 | CQ33: =CS32+30 -> 2024-09-25 | CR33: 2024-09-25 | CS33: =$CR33+IF(AND(WEEKDAY($CR33)=6, ISERROR(VLOOKUP($CR33,FACTORES!$A:$A,1,0))=FALSE),3,0) -> 2024-09-25 | CT33: 2024-09-25 | CV33: =IF($CN$23=1,IF(AND($CL$23=3,CT33=CT32),$CT33,AS33),IF(AND($CN$23=2,$CL$23=3),CT33,CS33)) -> 2024-11-20 | CW33: =(CV33-CV32) -> 118 | CX33: =IF(OR($CL$23=2,$CL$23=1),CW33+CX32,IF(CX31=0,CW33,CW33+CX32)) -> 118
AH34: 4 | AW34: 2024-10-21 | AY34: 12 | AZ34: 2024 | BA34: 4 | BB34: 2025 | BC34: 7 | BD34: 2025 | BE34: 2024-12-20 | BF34: =$BE34+IF(OR(WEEKDAY($BE34)=1,ISERROR(VLOOKUP($BE34,FACTORES!$A:$A,1,0))=FALSE),1,IF(WEEKDAY($BE34)=7,2,0)) -> 2024-12-20 | BG34: 2024-12-20 | CO34: 4 | CQ34: 2024-10-25 | CR34: 2024-10-25 | CS34: =$CR34+IF(AND(WEEKDAY($CR34)=6, ISERROR(VLOOKUP($CR34,FACTORES!$A:$A,1,0))=FALSE),3,0) -> 2024-10-25 | CT34: 2024-10-25 | CV34: 00:00:00 | CW34: -45616 | CX34: -45616
K35: =SUM(K$31:K33) -> 17091.59 | L35: =SUM(L$31:N33) -> 3361.07 | P35: =SUM(P$31:P33) -> 20452.66 | R35: =SUM(R$31:S33) -> 20453.66 | AH35: 5 | AW35: =AW34+15 -> 2024-11-05 | CA35: 0.408 | CE35: =ROUND((G6+O14+Q18)*$CE$32/(1-$CE$32),2) -> 164 | CF35: =ROUND((G6+O14+Q18)*$CF$32/(1-$CF$32),2) ->  | CW35: =(CV35-CV34) -> 0 | CX35: =IF(OR($CL$23=2,$CL$23=1),CW35+CX34,IF(CX33=0,CW35,CW35+CX34)) -> -45616
CA36: =CA35/12 -> 0.034 | CC36: =(1+CA35/12)^12-1 -> 0.4936418211 | CE36: =$CE$35*$G$10 -> 492 | CF36: =$CF$35*$G$10 ->  | CW36: 0 | CX36: -45616
AW37: =AW36+15 -> 1900-01-15 | CC37: =CC36*100 -> 49.36418211 | CW37: 0 | CX37: -45616
CC38: =(1+CC36)^(1/365)-1 -> 0.001099829885 | CW38: 0 | CX38: -45616
CW39: 0 | CX39: -45616
CW40: 0 | CX40: -45616
CW41: 0 | CX41: -45616
CW42: 0 | CX42: -45616
CW43: =(CV43-CV42) -> 0 | CX43: =IF(OR($CL$23=2,$CL$23=1),CW43+CX42,IF(CX41=0,CW43,CW43+CX42)) -> -45616
CW44: =(CV44-CV43) -> 0 | CX44: =IF(OR($CL$23=2,$CL$23=1),CW44+CX43,IF(CX42=0,CW44,CW44+CX43)) -> -45616
CW45: 0 | CX45: -45616
CW46: 0 | CX46: -45616
CW47: =(CV47-CV46) -> 0 | CX47: =IF(OR($CL$23=2,$CL$23=1),CW47+CX46,IF(CX45=0,CW47,CW47+CX46)) -> -45616
CW48: 0 | CX48: -45616
CW49: 0 | CX49: -45616
CW50: 0 | CX50: -45616
CW51: 0 | CX51: -45616
CW52: 0 | CX52: -45616
CW53: 0 | CX53: -45616
AG551: =AG550+30 -> 1900-01-30
AG552: 60
AG553: 1900-03-30
AG554: 1900-04-29
AG555: 1900-05-29
AG556: 1900-06-28
AG557: 1900-07-28
AG558: 1900-08-27
AG559: 1900-09-26
AG560: 1900-10-26
AG561: 1900-11-25
AG562: 1900-12-25
AG563: 1901-01-24
AG564: 1901-02-23
AG565: 1901-03-25
AG566: 1901-04-24
AG567: 1901-05-24
AG568: 1901-06-23
AG569: 1901-07-23
AG570: 1901-08-22
AG571: 1901-09-21
AG572: 1901-10-21
AG573: 1901-11-20
AG574: 1901-12-20
AG575: 1902-01-19
AG576: 1902-02-18
AG577: 1902-03-20
AG578: 1902-04-19
AG579: 1902-05-19
AG580: 1902-06-18
AG581: 1902-07-18
AG582: 1902-08-17
AG583: 1902-09-16
AG584: 1902-10-16
AG585: 1902-11-15
AG586: 1902-12-15
AG587: 1903-01-14
AG588: 1903-02-13
AG589: 1903-03-15
AG590: 1903-04-14
AG591: 1903-05-14
AG592: 1903-06-13
AG593: 1903-07-13
AG594: 1903-08-12
AG595: 1903-09-11
AG596: 1903-10-11
AG597: 1903-11-10
AG598: 1903-12-10
AG599: 1904-01-09
AG600: 1904-02-08
AG601: 1904-03-09
AG602: 1904-04-08
AG603: 1904-05-08
AG604: 1904-06-07
AG605: 1904-07-07
AG606: 1904-08-06
AG607: 1904-09-05
AG608: 1904-10-05
AG609: =AG608+30 -> 1904-11-04
AG610: 1904-12-04
AG611: 1905-01-03
AG612: 1905-02-02
AG613: 1905-03-04
AG614: 1905-04-03
AG615: 1905-05-03
AG616: 1905-06-02
AG617: 1905-07-02
AG618: 1905-08-01
AG619: 1905-08-31
AG620: 1905-09-30
AG621: 1905-10-30
AG622: 1905-11-29
AG623: 1905-12-29
AG624: 1906-01-28
AG625: 1906-02-27
AG626: 1906-03-29
AG627: 1906-04-28
AG628: 1906-05-28
AG629: 1906-06-27
AG630: 1906-07-27
AG631: 1906-08-26
AG632: 1906-09-25
AG633: 1906-10-25
AG634: 1906-11-24
AG635: 1906-12-24
AG636: 1907-01-23
AG637: 1907-02-22
AG638: 1907-03-24
AG639: 1907-04-23
AG640: 1907-05-23
AG641: 1907-06-22
AG642: 1907-07-22
AG643: 1907-08-21
AG644: 1907-09-20
AG645: 1907-10-20
AG646: 1907-11-19
AG647: 1907-12-19
AG648: 1908-01-18
AG649: 1908-02-17
AG650: 1908-03-18
AG651: 1908-04-17
AG652: 1908-05-17
AG653: 1908-06-16
AG654: 1908-07-16
AG655: 1908-08-15
AG656: 1908-09-14
AG657: 1908-10-14
AG658: 1908-11-13
AG659: 1908-12-13
AG660: 1909-01-12
AG661: 1909-02-11
AG662: 1909-03-13
AG663: 1909-04-12
AG664: 1909-05-12
AG665: 1909-06-11
AG666: 1909-07-11
AG667: 1909-08-10
AG668: 1909-09-09
AG669: 1909-10-09
AG670: 1909-11-08
AG671: 1909-12-08
AG672: 1910-01-07
AG673: =AG672+30 -> 1910-02-06
AG674: 1910-03-08
AG675: 1910-04-07
AG676: 1910-05-07
AG677: 1910-06-06
AG678: 1910-07-06
AG679: 1910-08-05
AG680: 1910-09-04
AG681: 1910-10-04
AG682: 1910-11-03
AG683: 1910-12-03
AG684: 1911-01-02
AG685: 1911-02-01
AG686: 1911-03-03
AG687: 1911-04-02
AG688: 1911-05-02
AG689: 1911-06-01
AG690: 1911-07-01
AG691: 1911-07-31
AG692: 1911-08-30
AG693: 1911-09-29
AG694: 1911-10-29
AG695: 1911-11-28
AG696: 1911-12-28
AG697: 1912-01-27
AG698: 1912-02-26
AG699: 1912-03-27
AG700: 1912-04-26
AG701: 1912-05-26
AG702: 1912-06-25
AG703: 1912-07-25
AG704: 1912-08-24
AG705: 1912-09-23
AG706: 1912-10-23
... 98 more rows

Sheet FACTORES
A1: FERIADOS | C1: DESGRAVAMEN | F1: DESGRAVAMEN | L1: MICROSEGURO | P1: MICROSEGURO | T1: MICROSEGURO | X1: MICROSEGURO
L2: NEGOCIO PROTEGIDO | P2: PROTECCION FINANCIERA | T2: NEGOCIO PROTEGIDO | X2: ONCORESPALDO
A3: FECHA | B3: DESCRIPCION | C3: TASA HIPOTECARIA | F3: PLAZO 0 | G3: PLAZO 1 | H3: TASA | L3: PLAZO 0 | M3: PLAZO 1 | N3: TASA | P3: PLAZO 0 | Q3: PLAZO 1 | R3: TASA | T3: PLAZO 0 | U3: PLAZO 1 | V3: TASA | X3: PLAN | Y3: PRIMA TITULAR | Z3: PRIMA AFILIADOS | AC3: Duración del crédito (en meses) | AE3: Tasa por ciento Retorno | AH3: monto préstamo | AJ3: prima individual | AK3: prima Familiar
A4: 1998-01-01 | B4: AÑO NUEVO | C4: 0.00043478 | D4: 1.25 | F4: 6 | G4: 0 | H4: 0.0048 | L4: 0 | M4: 1000 | N4: 0.00158 | P4: 0 | Q4: 6 | R4: 0.02255 | T4: 0 | U4: 5000 | V4: 0.004 | X4: 0 | Y4: 5 | Z4: 5 | AA4: nuevo | AC4: 25 | AD4: 30 | AE4: 0.0179013 | AH4: < 5,000 | AI4: 0 | AJ4: 5 | AK4: 5.5
A5: 1998-04-09 | B5: JUEVES SANTO | D5: =MAX($I$4:$I$23) -> 0 | F5: 12 | G5: 6.000001 | H5: 0.0081152 | L5: 1000.001 | M5: 3000 | N5: 0.00104 | P5: 7 | Q5: 12 | R5: 0.02255 | T5: 5000.01 | U5: 10000 | V5: 0.001289 | X5: 5000 | Y5: 7 | Z5: 7 | AA5: nuevo | AC5: 31 | AD5: 36 | AE5: 0.021301 | AH5: >=5,000 y <20,000 | AI5: 5000 | AJ5: 7 | AK5: 12
A6: 1998-04-10 | B6: VIERNES SANTO | D6: =MIN($I$4:$I$23) -> 0 | F6: 18 | G6: 12.000001 | H6: 0.01091465 | P6: 13 | Q6: 18 | R6: 0.02255 | T6: 10000.01 | U6: 24000 | V6: 0.000938 | X6: 20000 | Y6: 9 | Z6: 9 | AA6: nuevo | AC6: 37 | AD6: 42 | AE6: 0.0242114 | AH6: >=20,000 y <50,000 | AI6: 20000 | AJ6: 9 | AK6: 18
A7: 1998-05-01 | B7: DIA DEL TRABAJO | F7: 24 | G7: 18.000001 | H7: 0.01425253 | P7: 19 | Q7: 24 | R7: 0.02365 | T7: 24000.01 | U7: 150000 | V7: 0.000938 | X7: 50000 | Y7: 14 | Z7: 14 | AA7: nuevo | AC7: 43 | AD7: 48 | AE7: 0.0274896 | AH7: >=50,000 | AI7: 50000 | AJ7: 14 | AK7: 18
A8: 1998-06-29 | B8: SAN PEDRO Y SAN PABLO | F8: 30 | G8: 24.000001 | H8: 0.0175123 | P8: 25 | Q8: 30 | R8: 0.0233 | T8: 150000.01 | U8: 200000 | V8: 0.000774 | AC8: 49 | AD8: 54 | AE8: 0.0307495
A9: 1998-07-28 | B9: FIESTAS PATRIAS | F9: 36 | G9: 30.000001 | H9: 0.02125785 | P9: 31 | Q9: 36 | R9: 0.0256 | T9: 200000.01 | U9: 21000000 | V9: 0.000774 | X9: Combo | Y9: 2.9 | Z9: no aplica | AA9: nuevo | AC9: 55 | AD9: 60 | AE9: 0.0338318
A10: 1998-07-29 | B10: FIESTAS PATRIAS | F10: 42 | G10: 36.000001 | H10: 0.0241467 | P10: 37 | Q10: 42 | R10: 0.0277 | T10: 2100000000 | U10: 1000000000000 | V10: 0.000774 | Y10: 4.5 | Z10: 4.5 | AA10: ANTIGUO PLAN | AC10: 61 | AD10: 66 | AE10: 0.0370292 | AH10: =VLOOKUP(Cronograma!G6,AI3:AK7,2) -> 9 | AI10: indiv
A11: 1998-08-30 | B11: SANTA ROSA DE LIMA | F11: 48 | G11: 42.000001 | H11: 0.02789438 | K11: ITF | L11: =Cronograma!O14 -> 1.7 | P11: 43 | Q11: 48 | R11: 0.0319 | Y11: 21.9 | Z11: 7 | AA11: ANTIGUO PLAN | AC11: 67 | AD11: 72 | AE11: 0.0402311 | AH11: =VLOOKUP(Cronograma!G6,AI3:AK7,3) -> 18 | AI11: familiar
A12: 1998-10-08 | B12: COMBATE DE ANGAMOS | F12: 54 | G12: 48.000001 | H12: 0.03243309 | K12: Monto Neto | L12: =Cronograma!G6 -> 34000 | P12: 49 | Q12: 54 | R12: 0.0346 | AC12: 73 | AD12: 78 | AE12: 0.0433877
A13: 1998-11-01 | B13: DIA DE LOS DIFUNTOS | F13: 60 | G13: 54.000001 | H13: 0.03243309 | K13: Desgravamen | L13: =IF(Cronograma!M16="No",0,IF(Cronograma!$M$16="Si, Tradicional",Cronograma!CE31,Cronograma!CF31)) -> 0.0048 | M13: =Cronograma!M16 -> Si, Tradicional | P13: 55 | Q13: 60 | R13: 0.0387 | AC13: 79 | AD13: 84 | AE13: 0.0465516
A14: 1998-12-08 | B14: DIA INMACULADA CONCEPCION | F14: 66 | G14: 60.000001 | H14: 0.03960279 | L14: =IF(L12="",0,VLOOKUP(L12,$T$4:$V$11,3)) -> 0.000938 | P14: 61 | Q14: 66 | R14: 0.041 | AC14: 85 | AD14: 90 | AE14: 0.0496998
A15: 1998-12-24 | B15: NAVIDAD | F15: 72 | G15: 66.000001 | H15: 0.03960279 | K15: Plazo | L15: =Cronograma!G10 -> 3 | P15: 67 | Q15: 72 | R15: 0.0414 | AC15: 91 | AD15: 96 | AE15: 0.0528454
A16: 1998-12-25 | B16: NAVIDAD | F16: 78 | G16: 72.000001 | H16: 0.04570245 | J16: A | K16: Negoc. Protegido | L16: =L12*L14*L15 -> 95.676 | M16: FALSE | N16: =L16 -> 95.676 | P16: 73 | Q16: 78 | R16: 0.0424 | AC16: 97 | AD16: 120 | AE16: 0.0652173
A17: 1999-01-01 | B17: AÑO NUEVO | F17: 84 | G17: 78.000001 | H17: 0.04570245 | P17: 79 | Q17: 84 | R17: 0.0424 | AC17: 121 | AD17: 144 | AE17: 0.0773045
A18: 1999-04-01 | B18: JUEVES SANTO | F18: 90 | G18: 84.000001 | H18: 0.0517331 | P18: 85 | Q18: 90 | R18: 0.0434 | AC18: 145 | AD18: 168 | AE18: 0.0889913
A19: 1999-04-02 | B19: VIERNES SANTO | F19: 96 | G19: 90.000001 | H19: 0.0517331 | K19: Prima Mensual | L19: =VLOOKUP(Cronograma!G6,AI3:AK7,2) -> 9 | P19: 91 | Q19: 96 | R19: 0.0463 | AC19: 169 | AD19: 180 | AE19: 0.0945757
A20: 1999-05-01 | B20: DIA DEL TRABAJO | F20: 120 | G20: 96.000001 | H20: 0.06359355 | J20: B | K20: Familia Protegida | L20: =L15*L19*(Cronograma!CH23-1) -> 27 | M20: FALSE | N20: =L20 -> 27 | P20: 97 | Q20: 102 | R20: 0.0493
A21: 1999-06-29 | B21: SAN PEDRO Y SAN PABLO | F21: 144 | G21: 120.000001 | H21: 0.07519341 | P21: 103 | Q21: 108 | R21: 0.0522
A22: 1999-07-28 | B22: FIESTAS PATRIAS | F22: 168 | G22: 144.000001 | H22: 0.08654195 | P22: 109 | Q22: 114 | R22: 0.0552
A23: 1999-07-29 | B23: FIESTAS PATRIAS | F23: 180 | G23: 168.000001 | H23: 0.09212352 | K23: Accidente | L23: =VLOOKUP(Cronograma!G6,AI3:AK7,3) -> 18 | P23: 115 | Q23: 120 | R23: 0.0582
A24: 1999-08-30 | B24: SANTA ROSA DE LIMA | F24: 190 | G24: 180.000001 | H24: 0.093 | J24: D | K24: Familia Protegida | L24: =L15*L23 -> 54 | M24: FALSE | N24: =L24 -> 54
A25: 1999-10-08 | B25: COMBATE DE ANGAMOS | F25: 196 | G25: 190.000001 | H25: 0.1
A26: 1999-11-01 | B26: DIA DE LOS DIFUNTOS | F26: 216 | G26: 196.000001 | H26: 0.106
A27: 1999-12-08 | B27: DIA INMACULADA CONCEPCION | F27: 228 | G27: 216.000001 | H27: 0.111 | K27: PLAN | L27: =Cronograma!G6 -> 34000
A28: 1999-12-25 | B28: NAVIDAD | F28: 240 | G28: 228.000001 | H28: 0.117 | K28: Afiliados además del titular | L28: =Cronograma!U21 -> 0 | O28: FALSE
A29: 2000-01-01 | B29: AÑO NUEVO | F29: 240 | G29: 240 | H29: 0.117 | J29: E | K29: OncoRespaldo | L29: =IF(L27<20000,O32,(VLOOKUP(L27,$X$4:$Z$7,2)+L28*VLOOKUP(L27,$X$4:$Z$7,3))*L15) -> 27 | M29: FALSE | N29: =Cronograma!V21 -> 0 | O29: =COUNTIF(M16:M33,TRUE) -> 0
A30: 2000-04-20 | B30: JUEVES SANTO | O30: TRUE
A31: 2000-04-21 | B31: VIERNES SANTO | O31: FALSE
A32: 2000-05-01 | B32: DIA DEL TRABAJO | L32: =IF(L15="",0,VLOOKUP(L15,$P$1:$R$72,3,1)) -> 0.02255 | O32: 27
A33: 2000-06-29 | B33: SAN PEDRO Y SAN PABLO | J33: C | K33: Protec. Financiera | L33: =ROUND((L11+L12+L36)*L32/(1-L32-L13),2) -> 788.3 | M33: FALSE
A34: 2000-07-28 | B34: FIESTAS PATRIAS
A35: 2000-07-29 | B35: FIESTAS PATRIAS
A36: 2000-08-30 | B36: SANTA ROSA DE LIMA | L36: =SUMIF(M16:M29,L37,N16:N29)+Cronograma!V15 -> 0
A37: 2000-10-08 | B37: COMBATE DE ANGAMOS | L37: TRUE
A38: 2000-11-01 | B38: DIA DE LOS DIFUNTOS
A39: 2000-12-08 | B39: DIA INMACULADA CONCEPCION
A40: 2000-12-25 | B40: NAVIDAD
A41: 2001-01-01 | B41: AÑO NUEVO
A42: 2001-04-12 | B42: JUEVES SANTO
A43: 2001-04-13 | B43: VIERNES SANTO
A44: 2001-04-14 | B44: NO LABORABLE
A45: 2001-05-01 | B45: DIA DEL TRABAJO
A46: 2001-06-29 | B46: SAN PEDRO Y SAN PABLO
A47: 2001-07-28 | B47: FIESTAS PATRIAS
A48: 2001-07-29 | B48: FIESTAS PATRIAS
A49: 2001-08-30 | B49: SANTA ROSA DE LIMA
A50: 2001-10-08 | B50: COMBATE DE ANGAMOS
A51: 2001-11-01 | B51: DIA DE LOS DIFUNTOS
A52: 2001-12-08 | B52: DIA INMACULADA CONCEPCION
A53: 2001-12-25 | B53: NAVIDAD
A54: 2002-01-01 | B54: AÑO NUEVO
A55: 2002-03-28 | B55: JUEVES SANTO
A56: 2002-03-29 | B56: VIERNES SANTO
A57: 2002-05-01 | B57: DIA DEL TRABAJO
A58: 2002-06-29 | B58: SAN PEDRO Y SAN PABLO
A59: 2002-07-28 | B59: FIESTAS PATRIAS
A60: 2002-07-29 | B60: FIESTAS PATRIAS
A61: 2002-08-30 | B61: SANTA ROSA DE LIMA
A62: 2002-10-08 | B62: COMBATE DE ANGAMOS
A63: 2002-11-01 | B63: DIA DE LOS DIFUNTOS
A64: 2002-12-08 | B64: DIA INMACULADA CONCEPCION
A65: 2002-12-25 | B65: NAVIDAD
A66: 2003-01-01 | B66: AÑO NUEVO
A67: 2003-04-17 | B67: JUEVES SANTO
A68: 2003-04-18 | B68: VIERNES SANTO
A69: 2003-05-01 | B69: DIA DEL TRABAJO
A70: 2003-06-29 | B70: SAN PEDRO Y SAN PABLO
A71: 2003-07-28 | B71: FIESTAS PATRIAS
A72: 2003-07-29 | B72: FIESTAS PATRIAS
A73: 2003-08-30 | B73: SANTA ROSA DE LIMA
A74: 2003-10-08 | B74: COMBATE DE ANGAMOS
A75: 2003-11-01 | B75: DIA DE LOS DIFUNTOS
A76: 2003-12-08 | B76: DIA INMACULADA CONCEPCION
A77: 2003-12-25 | B77: NAVIDAD
A78: 2004-01-01 | B78: AÑO NUEVO
A79: 2004-04-08 | B79: JUEVES SANTO
A80: 2004-04-09 | B80: VIERNES SANTO
A81: 2004-05-01 | B81: DIA DEL TRABAJO
A82: 2004-06-29 | B82: SAN PEDRO Y SAN PABLO
A83: 2004-07-28 | B83: FIESTAS PATRIAS
A84: 2004-07-29 | B84: FIESTAS PATRIAS
A85: 2004-08-30 | B85: SANTA ROSA DE LIMA
A86: 2004-10-08 | B86: COMBATE DE ANGAMOS
A87: 2004-11-01 | B87: DIA DE LOS DIFUNTOS
A88: 2004-12-08 | B88: DIA INMACULADA CONCEPCION
A89: 2004-12-25 | B89: NAVIDAD
A90: 2005-01-01 | B90: AÑO NUEVO
A91: 2005-03-24 | B91: JUEVES SANTO
A92: 2005-03-25 | B92: VIERNES SANTO
A93: 2005-05-01 | B93: DIA DEL TRABAJO
A94: 2005-05-02 | B94: DIA DEL TRABAJO
A95: 2005-06-29 | B95: SAN PEDRO Y SAN PABLO
A96: 2005-07-28 | B96: FIESTAS PATRIAS
A97: 2005-07-29 | B97: FIESTAS PATRIAS
A98: 2005-08-30 | B98: SANTA ROSA DE LIMA
A99: 2005-10-08 | B99: COMBATE DE ANGAMOS
A100: 2005-11-01 | B100: DIA DE LOS DIFUNTOS
A101: 2005-12-08 | B101: DIA INMACULADA CONCEPCION
A102: 2005-12-25 | B102: NAVIDAD
A103: 2006-01-01 | B103: ANIO NUEVO
A104: 2006-04-13 | B104: JUEVES SANTO
A105: 2006-04-14 | B105: VIERNES SANTO
A106: 2006-05-01 | B106: DIA DEL TRABAJO
A107: 2006-06-29 | B107: SAN PEDRO Y SAN PABLO
A108: 2006-07-28 | B108: FIESTAS PATRIAS
A109: 2006-07-29 | B109: FIESTAS PATRIAS
A110: 2006-08-30 | B110: SANTA ROSA DE LIMA
A111: 2006-10-08 | B111: COMBATE DE ANGAMOS
A112: 2006-11-01 | B112: DIA DE LOS DIFUNTOS
A113: 2006-12-08 | B113: DIA INMACULADA CONCEPCION
A114: 2006-12-25 | B114: NAVIDAD
A115: 2007-01-01 | B115: AÑO NUEVO
A116: 2007-04-05 | B116: JUEVES SANTO
A117: 2007-04-06 | B117: VIERNES SANTO
A118: 2007-05-01 | B118: DIA DEL TRABAJO
A119: 2007-06-29 | B119: SAN PEDRO Y SAN PABLO
A120: 2007-07-28 | B120: FIESTAS PATRIAS
A121: 2007-07-29 | B121: FIESTAS PATRIAS
A122: 2007-08-30 | B122: SANTA ROSA DE LIMA
A123: 2007-10-08 | B123: COMBATE DE ANGAMOS
A124: 2007-11-01 | B124: DIA DE LOS DIFUNTOS
A125: 2007-12-08 | B125: DIA INMACULADA CONCEPCION
A126: 2007-12-24 | B126: FERIADO INSTITUCIONAL
A127: 2007-12-25 | B127: NAVIDAD
A128: 2008-01-01 | B128: AÑO NUEVO
A129: 2008-03-20 | B129: JUEVES SANTO
A130: 2008-03-21 | B130: VIERNES SANTO
A131: 2008-05-01 | B131: DIA DEL TRABAJO
A132: 2008-06-29 | B132: SAN PEDRO Y SAN PABLO
A133: 2008-07-28 | B133: FIESTAS PATRIAS
A134: 2008-07-29 | B134: FIESTAS PATRIAS
A135: 2008-08-30 | B135: SANTA ROSA DE LIMA
A136: 2008-10-08 | B136: COMBATE DE ANGAMOS
A137: 2008-11-01 | B137: DIA DE LOS DIFUNTOS
A138: 2008-12-08 | B138: DIA INMACULADA CONCEPCION
A139: 2008-12-25 | B139: NAVIDAD
A140: 2009-01-01 | B140: AÑO NUEVO
A141: 2009-04-09 | B141: JUEVES SANTO
A142: 2009-04-10 | B142: VIERNES SANTO
A143: 2009-05-01 | B143: DIA DEL TRABAJO
A144: 2009-06-29 | B144: SAN PEDRO Y SAN PABLO
A145: 2009-07-28 | B145: FIESTAS PATRIAS
A146: 2009-07-29 | B146: FIESTAS PATRIAS
A147: 2009-08-30 | B147: SANTA ROSA DE LIMA
A148: 2009-10-08 | B148: COMBATE DE ANGAMOS
A149: 2009-11-01 | B149: DIA DE LOS DIFUNTOS
A150: 2009-12-08 | B150: DIA INMACULADA CONCEPCION
A151: 2009-12-25 | B151: NAVIDAD
A152: 2010-01-01 | B152: AÑO NUEVO
A153: 2010-04-01 | B153: JUEVES SANTO
A154: 2010-04-02 | B154: VIERNES SANTO
A155: 2010-05-01 | B155: DIA DEL TRABAJO
A156: 2010-06-29 | B156: SAN PEDRO Y SAN PABLO
A157: 2010-07-28 | B157: FIESTAS PATRIAS
A158: 2010-07-29 | B158: FIESTAS PATRIAS
A159: 2010-08-30 | B159: SANTA ROSA DE LIMA
A160: 2010-10-08 | B160: COMBATE DE ANGAMOS
A161: 2010-11-01 | B161: DIA DE LOS DIFUNTOS
A162: 2010-12-08 | B162: DIA INMACULADA CONCEPCION
A163: 2010-12-25 | B163: NAVIDAD
A164: 2011-01-01 | B164: AÑO NUEVO
A165: 2011-04-21 | B165: JUEVES SANTO
A166: 2011-04-22 | B166: VIERNES SANTO
A167: 2011-05-01 | B167: DIA DEL TRABAJO
A168: 2011-06-29 | B168: SAN PEDRO Y SAN PABLO
A169: 2011-07-28 | B169: FIESTAS PATRIAS
A170: 2011-07-29 | B170: FIESTAS PATRIAS
A171: 2011-08-30 | B171: SANTA ROSA DE LIMA
A172: 2011-10-08 | B172: COMBATE DE ANGAMOS
A173: 2011-11-01 | B173: DIA DE LOS DIFUNTOS
A174: 2011-12-08 | B174: DIA INMACULADA CONCEPCION
A175: 2011-12-25 | B175: NAVIDAD
A176: 2012-01-01 | B176: ANO NUEVO
A177: 2012-04-05 | B177: JUEVES SANTO
A178: 2012-04-06 | B178: VIERNES SANTO
A179: 2012-05-01 | B179: DIA DEL TRABAJO
A180: 2012-06-29 | B180: SAN PEDRO Y SAN PABLO
A181: 2012-07-28 | B181: FIESTAS PATRIAS
A182: 2012-07-29 | B182: FIESTAS PATRIAS
A183: 2012-08-30 | B183: SANTA ROSA DE LIMA
A184: 2012-10-08 | B184: COMBATE DE ANGAMOS
A185: 2012-11-01 | B185: DIA DE LOS DIFUNTOS
A186: 2012-12-08 | B186: DIA INMACULADA CONCEPCION
A187: 2012-12-25 | B187: NAVIDAD
A188: 2013-01-01 | B188: AÑO NUEVO
A189: 2013-03-28 | B189: JUEVES SANTO
A190: 2013-03-29 | B190: VIERNES SANTO
A191: 2013-05-01 | B191: DIA DEL TRABAJO
A192: 2013-06-29 | B192: SAN PEDRO Y SAN PABLO
A193: 2013-07-28 | B193: FIESTAS PATRIAS
A194: 2013-07-29 | B194: FIESTAS PATRIAS
A195: 2013-08-30 | B195: SANTA ROSA DE LIMA
A196: 2013-10-08 | B196: COMBATE DE ANGAMOS
A197: 2013-11-01 | B197: DIA DE LOS DIFUNTOS
A198: 2013-12-08 | B198: DIA INMACULADA CONCEPCION
A199: 2013-12-25 | B199: NAVIDAD
A200: 2014-01-01 | B200: AÑO NUEVO
... 1043 more rows

Sheet TABLA
A1: Plan | B1: inc IGV
A2: Edificación | B2: 0.0002384 | D2: Si, Tradicional | G2: Capital de trabajo
A3: Existencias/Contenido | B3: 0.0002902 | D3: Sí, retorno | G3: Mi efectivo Express
A4: Maq Equipo Fijo | B4: 0.0003283 | D4: No | G4: Máquinas y Equipos
G5: Locales Comerciales
G6: Compra de Deuda
G7: Financiamiento para SOAT
G8: Mercado y Galerías Comerciales
G9: Línea de Crédito Rural
G10: Agropecuario de Libre Amortización
G11: Producción Ganadera
G12: Producción Agrícola
G13: Línea de Crédito Efectivo Altoque
G14: Compra de Deuda Plus
G15: Casa Propia
G16: Mi Efectivo Semilla
G17: Construcción de Vivienda
G18: Consumo Personal
G19: Línea de Crédito Efectivo Altoque Dependiente
G20: Crédito Mujer
